bitfinex/quotes_SOLUSD_20250414
["timestamp","ask_amount","ask_price","bid_price","bid_amount"]
[1744661197487,80.8,130.51,130.5,16.43194107]
[1744661197686,35.07314107,130.53,130.49,16.43194107]
[1744661198186,35.07314107,130.53,130.48,16.43194107]
[1744661198581,35.07314107,130.53,130.48,24.09574107]
[1744661198792,35.07314107,130.53,130.49,16.43194107]
[1744661198974,35.07314107,130.53,130.48,24.09574107]
[1744661199375,27.41194107,130.53,130.49,16.43194107]
[1744661199668,35.07304107,130.53,130.49,16.43194107]
[1744661199976,16.43194107,130.52,130.47,16.43194107]
[1744661200597,24.09364107,130.52,130.47,24.09604107]
[1744661200782,27.41194107,130.53,130.49,16.43194107]
[1744661200982,35.07304107,130.53,130.49,16.43194107]
[1744661201300,18.6411,130.53,130.49,16.43194107]
[1744661202202,10.98,130.53,130.49,16.43194107]
[1744661202500,10.98,130.53,130.49,24.09514107]
[1744661202683,18.6411,130.53,130.49,24.09514107]
[1744661203302,18.6411,130.53,130.49,16.43194107]
[1744661203483,35.07304107,130.53,130.48,24.09564107]
[1744661204601,35.07304107,130.53,130.49,24.09524107]
[1744661204798,10.98,130.53,130.5,16.43194107]
[1744661204973,26.0,130.48,130.45,0.03]
[1744661205179,97.23194107,130.5,130.45,0.03]
[1744661205473,80.8,130.5,130.45,0.03]
[1744661205673,97.23194107,130.5,130.46,16.43194107]
[1744661205874,80.8,130.5,130.47,16.43194107]
[1744661206277,16.43194107,130.51,130.46,16.43194107]
[1744661207405,24.09474107,130.5,130.46,16.43194107]
[1744661207895,24.09474107,130.5,130.45,16.46194107]
[1744661208103,16.43194107,130.49,130.45,16.46194107]
[1744661208299,7.6628,130.5,130.45,16.46194107]
[1744661208501,24.09474107,130.5,130.45,24.12764107]
[1744661209095,24.09474107,130.5,130.45,16.46194107]
[1744661209890,24.09474107,130.5,130.46,16.43194107]
[1744661210100,24.09474107,130.5,130.45,16.46194107]
[1744661211279,24.09474107,130.5,130.45,24.12754107]
[1744661212975,24.09474107,130.5,130.45,16.46194107]
[1744661213180,16.43194107,130.49,130.45,16.46194107]
[1744661213387,16.43194107,130.49,130.45,0.03]
[1744661214285,16.43194107,130.48,130.45,0.03]
[1744661214491,16.43194107,130.47,130.45,0.03]
[1744661216007,16.43194107,130.46,130.45,0.03]
[1744661217689,35.2237515,130.46,130.45,0.03]
[1744661218201,42.8888515,130.46,130.45,0.03]
[1744661219085,24.09704107,130.46,130.45,0.03]
[1744661220517,7.6651,130.46,130.45,0.03]
[1744661220690,18.6237,130.49,130.45,16.46194107]
[1744661221014,18.6237,130.49,130.46,16.43194107]
[1744661221722,16.43194107,130.48,130.45,0.03]
[1744661221906,10.96,130.49,130.45,16.46194107]
[1744661222112,16.43194107,130.5,130.45,22.83874107]
[1744661222716,16.43194107,130.49,130.45,22.83874107]
[1744661223096,16.43194107,130.49,130.45,6.4068]
[1744661223305,16.43194107,130.48,130.45,6.4068]
[1744661223504,16.43194107,130.49,130.45,6.4068]
[1744661224722,7.664,130.48,130.45,6.4068]
[1744661224925,7.6636,130.49,130.45,22.83874107]
[1744661225118,7.6636,130.49,130.45,30.50444107]
[1744661225599,7.6636,130.49,130.45,22.83874107]
[1744661226114,7.663,130.5,130.47,16.43194107]
[1744661226802,7.663,130.5,130.46,18.04004107]
[1744661227217,24.09494107,130.5,130.46,1.6081]
[1744661227614,16.43194107,130.49,130.46,1.6081]
[1744661228195,16.43194107,130.47,130.45,0.03]
[1744661228401,80.8,130.49,130.45,0.03]
[1744661228402,97.23194107,130.46,130.45,0.03]
[1744661229112,0.28432314,130.44,130.39,2.7043489]
[1744661229427,16.43194107,130.42,130.39,2.7043489]
[1744661230200,16.43194107,130.4,130.39,2.7043489]
[1744661231210,24.10064107,130.4,130.39,2.7043489]
[1744661235712,99.59181043,130.39,130.33,6.2802]
[1744661236028,10.98,130.38,130.33,22.71214107]
[1744661236406,10.98,130.38,130.34,16.43194107]
[1744661237325,27.41194107,130.38,130.34,16.43194107]
[1744661237525,7.6704,130.37,130.34,16.43194107]
[1744661237832,24.10234107,130.37,130.33,6.2802]
[1744661238231,16.43194107,130.35,130.3,18.02744107]
[1744661238416,16.43194107,130.36,130.3,1.5955]
[1744661238623,16.43194107,130.36,130.31,16.43194107]
[1744661239533,43.27844107,130.37,130.32,16.43194107]
[1744661239711,24.10234107,130.37,130.3,1.5955]
[1744661239915,16.43194107,130.36,130.32,16.43194107]
[1744661240226,24.10234107,130.37,130.32,16.43194107]
[1744661240831,24.10234107,130.37,130.3,1.5955]
[1744661241011,24.10234107,130.37,130.32,16.43194107]
[1744661242935,7.6704,130.37,130.33,16.43194107]
[1744661243144,16.43194107,130.34,130.3,16.43194107]
[1744661243435,24.10234107,130.37,130.32,16.43194107]
[1744661245513,16.43194107,130.33,130.28,6.2609]
[1744661245725,16.43194107,130.32,130.28,6.2609]
[1744661246017,27.41194107,130.33,130.28,22.69284107]
[1744661246219,27.41194107,130.33,130.28,6.2609]
[1744661246420,16.43194107,130.31,130.28,0.03]
[1744661246624,7.6734,130.32,130.28,16.46194107]
[1744661247237,7.6734,130.32,130.28,0.03]
[1744661247531,10.98,130.33,130.31,16.43194107]
[1744661247727,10.98,130.33,130.3,16.43194107]
[1744661248135,10.98,130.33,130.29,16.43194107]
[1744661248515,10.98,130.33,130.29,24.10674107]
[1744661249140,10.98,130.33,130.29,7.6748]
[1744661249328,10.98,130.33,130.29,24.10674107]
[1744661249525,16.43194107,130.32,130.28,16.46194107]
[1744661249731,16.43194107,130.31,130.28,0.03]
[1744661249930,16.43194107,130.32,130.28,0.03]
[1744661250622,24.10554107,130.32,130.28,16.46194107]
[1744661250823,16.43194107,130.31,130.28,0.03]
[1744661251231,16.43194107,130.29,130.28,0.03]
[1744661252743,26.0,130.26,130.23,0.03]
[1744661252949,35.08158993,130.24,130.15,6.2004]
[1744661253149,16.43194107,130.2,130.16,16.43194107]
[1744661253348,10.98,130.2,130.14,1.629]
[1744661253642,10.98,130.2,130.13,26.79058997]
[1744661253643,16.43194107,130.17,130.13,26.79058997]
[1744661253848,10.98,130.2,130.14,16.43194107]
[1744661254043,16.43194107,130.18,130.14,16.43194107]
[1744661254250,10.98,130.2,130.13,10.3587489]
[1744661254431,16.43194107,130.17,130.13,26.79068997]
[1744661254634,10.98,130.2,130.13,10.3588489]
[1744661254832,10.98,130.2,130.16,16.43194107]
[1744661255030,27.41194107,130.2,130.16,16.43194107]
[1744661255344,10.98,130.2,130.16,16.43194107]
[1744661255651,10.98,130.2,130.17,16.43194107]
[1744661256030,10.98,130.2,130.16,16.43194107]
[1744661256639,27.41194107,130.2,130.13,29.5703489]
[1744661256838,27.41194107,130.2,130.16,16.43194107]
[1744661257040,10.98,130.2,130.18,16.43194107]
[1744661257242,10.98,130.2,130.18,26.41655323]
[1744661257440,10.98,130.2,130.17,26.41655323]
[1744661257843,10.98,130.2,130.14,26.41655323]
[1744661258151,10.98,130.2,130.17,26.41655323]
[1744661258532,10.98,130.2,130.19,7.681]
[1744661258748,10.98,130.24,130.19,34.09755323]
[1744661259050,239.28,130.27,130.23,26.41655323]
[1744661259264,239.28,130.27,130.24,26.41655323]
[1744661259840,10.98,130.28,130.25,26.41655323]
[1744661260536,10.98,130.28,130.26,26.41655323]
[1744661260951,10.98,130.28,130.25,34.09365323]
[1744661261338,10.98,130.28,130.26,26.41655323]
[1744661263546,37.39655323,130.28,130.21,19.1985]
[1744661263807,37.39655323,130.28,130.22,7.6793]
[1744661263941,10.98,130.28,130.22,34.09585323]
[1744661264142,26.41655323,130.27,130.22,34.09585323]
[1744661264337,18.6557,130.28,130.22,34.09585323]
[1744661264536,18.6557,130.28,130.25,26.41655323]
[1744661264537,10.98,130.28,130.25,26.41655323]
[1744661264742,10.98,130.28,130.26,26.41655323]
[1744661264960,10.98,130.28,130.25,26.41655323]
[1744661265262,18.656,130.28,130.25,26.41655323]
[1744661265839,10.98,130.28,130.25,26.41655323]
[1744661266265,10.98,130.28,130.26,26.41655323]
[1744661266440,10.98,130.28,130.25,26.41655323]
[1744661266765,10.98,130.28,130.26,26.41655323]
[1744661267065,45.07235323,130.28,130.24,26.41655323]
[1744661267361,18.6558,130.28,130.24,26.41655323]
[1744661267563,18.6558,130.28,130.25,26.41655323]
[1744661268173,18.6558,130.28,130.21,7.6799]
[1744661268336,10.98,130.28,130.26,26.41655323]
[1744661268774,10.98,130.28,130.25,26.41655323]
[1744661269750,18.6558,130.28,130.25,26.41655323]
[1744661269949,18.6558,130.28,130.24,34.09455323]
[1744661271263,10.98,130.28,130.24,34.09455323]
[1744661271456,10.98,130.28,130.25,26.41655323]
[1744661271962,10.98,130.28,130.27,26.41655323]
[1744661272136,88.474,130.31,130.27,26.41655323]
[1744661272462,88.474,130.31,130.28,26.41655323]
[1744661272643,88.474,130.31,130.24,33.2965]
[1744661272844,114.89055323,130.31,130.27,26.41655323]
[1744661273049,88.474,130.31,130.27,26.41655323]
[1744661273359,114.89055323,130.31,130.27,26.41655323]
[1744661273972,26.41655323,130.3,130.26,26.41655323]
[1744661275043,7.6751,130.29,130.26,26.41655323]
[1744661275243,34.09165323,130.29,130.24,14.1008]
[1744661275659,34.09165323,130.29,130.25,26.41655323]
[1744661276276,26.41655323,130.27,130.2,32.75555323]
[1744661276445,26.41655323,130.25,130.21,56.41655323]
[1744661277050,45.23365323,130.26,130.22,26.41655323]
[1744661277246,35.31901035,130.26,130.22,16.50191035]
[1744661278070,35.31901035,130.26,130.21,37.6799]
[1744661278255,16.50191035,130.24,130.21,30.0]
[1744661279073,16.50191035,130.24,130.2,24.18221035]
[1744661279264,26.40886024,130.25,130.2,34.08916024]
[1744661280068,26.40886024,130.25,130.21,34.08856024]
[1744661280254,18.8171,130.26,130.22,26.40886024]
[1744661280457,18.8171,130.26,130.24,26.40886024]
[1744661280458,11.14,130.26,130.24,26.40886024]
[1744661280855,11.14,130.26,130.23,26.40886024]
[1744661282187,11.14,130.26,130.24,26.40886024]
[1744661282351,11.14,130.26,130.21,26.8796]
[1744661282551,11.14,130.26,130.24,26.40886024]
[1744661282767,11.14,130.26,130.21,26.8796]
[1744661282975,11.14,130.26,130.22,26.40886024]
[1744661283164,26.40886024,130.27,130.22,26.40886024]
[1744661283364,11.14,130.31,130.26,26.40886024]
[1744661283574,37.54886024,130.31,130.26,26.40886024]
[1744661284263,45.22286024,130.31,130.26,26.40886024]
[1744661284986,45.22286024,130.31,130.26,34.08576024]
[1744661285162,18.814,130.31,130.27,26.40886024]
[1744661285362,45.22286024,130.31,130.26,26.40886024]
[1744661286356,45.22286024,130.31,130.26,34.08556024]
[1744661286557,18.814,130.31,130.27,26.40886024]
[1744661286753,11.14,130.31,130.27,26.40886024]
[1744661286973,11.14,130.31,130.26,9.236]
[1744661287163,18.814,130.31,130.28,26.40886024]
[1744661287560,45.22286024,130.31,130.26,26.40886024]
[1744661288581,11.14,130.31,130.28,26.40886024]
[1744661288891,45.22296024,130.31,130.27,26.40886024]
[1744661289588,45.22296024,130.31,130.26,26.40886024]
[1744661289759,45.22296024,130.31,130.27,26.40886024]
[1744661290080,18.8141,130.31,130.27,26.40886024]
[1744661291583,45.22296024,130.31,130.27,26.40886024]
[1744661291887,18.8141,130.31,130.27,26.40886024]
[1744661292299,11.14,130.31,130.27,34.08506024]
[1744661292474,11.14,130.31,130.29,26.40886024]
[1744661292665,11.14,130.31,130.28,26.40886024]
[1744661292864,18.8141,130.31,130.28,26.40886024]
[1744661293491,18.8141,130.31,130.27,26.40886024]
[1744661293680,26.40886024,130.3,130.26,26.40886024]
[1744661294379,45.22296024,130.31,130.26,26.40886024]
[1744661294765,18.8141,130.31,130.28,26.40886024]
[1744661295475,18.8141,130.31,130.27,26.40886024]
[1744661295786,18.8141,130.31,130.28,26.40886024]
[1744661296174,11.14,130.31,130.28,26.40886024]
[1744661296379,7.6725,130.34,130.3,26.40886024]
[1744661296577,0.063,130.35,130.32,26.40886024]
[1744661296884,0.063,130.35,130.33,26.40886024]
[1744661297393,0.063,130.35,130.34,26.40886024]
[1744661297689,0.063,130.35,130.31,7.674]
[1744661297893,0.063,130.35,130.33,26.40886024]
[1744661298474,0.063,130.35,130.31,7.674]
[1744661298679,0.063,130.35,130.33,26.40886024]
[1744661299281,0.063,130.35,130.32,26.40886024]
[1744661299993,0.063,130.35,130.33,26.40886024]
[1744661301196,0.063,130.35,130.33,16.47287175]
[1744661303300,0.063,130.35,130.33,24.14567175]
[1744661303678,0.063,130.35,130.34,16.47287175]
[1744661304179,0.063,130.35,130.33,24.14567175]
[1744661305495,0.063,130.35,130.34,16.47287175]
[1744661306179,16.53587175,130.35,130.31,16.47287175]
[1744661306378,16.47287175,130.33,130.29,16.47287175]
[1744661306781,16.47287175,130.34,130.3,16.47287175]
[1744661307186,16.47287175,130.34,130.29,16.47287175]
[1744661307383,7.6734,130.32,130.29,16.47287175]
[1744661308500,7.6728,130.33,130.29,16.47287175]
[1744661308989,24.14567175,130.33,130.29,16.47287175]
[1744661310695,7.6725,130.34,130.3,16.47287175]
[1744661310881,7.6725,130.34,130.31,16.47287175]
[1744661311378,7.6725,130.34,130.29,7.6749]
[1744661311591,11.283,130.35,130.32,16.47287175]
[1744661311798,0.063,130.35,130.34,16.47287175]
[1744661312607,0.063,130.35,130.34,24.14507175]
[1744661312810,0.063,130.35,130.33,7.6727]
[1744661312987,0.063,130.35,130.33,24.14557175]
[1744661313407,0.063,130.35,130.34,16.47287175]
[1744661314417,0.063,130.35,130.34,24.14507175]
[1744661315796,0.063,130.35,130.34,24.28723332]
[1744661316005,0.063,130.35,130.34,43.36336689]
[1744661317816,0.063,130.35,130.34,73.36336689]
[1744661320928,0.063,130.35,130.34,43.36336689]
[1744661323930,0.063,130.35,130.34,73.36336689]
[1744661325430,0.063,130.37,130.36,0.14216157]
[1744661325632,0.063,130.37,130.36,16.61503332]
[1744661327020,0.063,130.37,130.36,40.75890507]
[1744661327221,0.063,130.41,130.4,16.47287175]
[1744661328434,0.063,130.41,130.4,24.14157175]
[1744661328842,0.063,130.41,130.4,16.47287175]
[1744661334941,0.063,130.41,130.37,16.47287175]
[1744661335140,0.063,130.41,130.38,16.47287175]
[1744661335349,0.063,130.41,130.37,16.47287175]
[1744661336646,7.7311,130.41,130.37,24.14327175]
[1744661337051,0.063,130.41,130.37,24.14327175]
[1744661340954,0.063,130.41,130.39,16.47287175]
[1744661341136,0.063,130.41,130.37,7.6704]
[1744661341137,0.063,130.41,130.4,16.47287175]
[1744661342143,0.063,130.41,130.4,16.61503332]
[1744661342736,0.063,130.43,130.41,0.56864628]
[1744661342932,0.063,130.43,130.42,24.28253332]
[1744661343635,0.063,130.43,130.42,24.14037175]
[1744661347635,0.063,130.43,130.42,43.35866689]
[1744661349632,0.063,130.43,130.42,24.28253332]
[1744661351627,0.063,130.43,130.42,43.35866689]
[1744661353845,0.063,130.43,130.42,73.35866689]
[1744661354839,0.063,130.45,130.43,0.14216157]
[1744661355046,0.063,130.45,130.44,52.02187707]
[1744661355760,0.063,130.45,130.44,52.16403864]
[1744661356962,0.063,130.45,130.44,89.83033864]
[1744661357536,0.063,130.49,130.45,0.14216157]
[1744661357736,0.063,130.49,130.48,16.47287175]
[1744661358563,0.063,130.49,130.48,24.13687175]
[1744661359071,0.063,130.53,130.5,0.14216157]
[1744661359268,0.063,130.53,130.52,16.61503332]
[1744661359640,0.063,130.53,130.52,35.69116689]
[1744661360447,0.063,130.55,130.54,0.14216157]
[1744661360774,0.063,130.55,130.54,43.35156689]
[1744661360950,0.063,130.55,130.54,24.13327175]
[1744661361946,0.063,130.55,130.53,16.47287175]
[1744661362563,0.063,130.55,130.51,7.6622]
[1744661362869,0.063,130.55,130.51,24.13507175]
[1744661363066,0.063,130.55,130.52,16.47287175]
[1744661363270,0.063,130.55,130.53,16.47287175]
[1744661363947,0.063,130.55,130.54,16.47287175]
[1744661364465,0.063,130.55,130.54,16.61503332]
[1744661364645,0.063,130.55,130.54,43.35156689]
[1744661365045,0.063,130.55,130.54,59.82443864]
[1744661365247,0.063,130.56,130.55,0.56864628]
[1744661365470,0.063,130.56,130.55,64.63483864]
[1744661366398,0.063,130.59,130.58,45.21829514]
[1744661366555,0.063,130.64,130.59,19.21829514]
[1744661366879,0.063,130.64,130.6,35.23193332]
[1744661367765,0.063,130.64,130.6,35.51625646]
[1744661368084,0.063,130.64,130.6,35.23193332]
[1744661369363,16.47287175,130.64,130.59,16.47287175]
[1744661370660,16.47287175,130.63,130.58,16.47287175]
[1744661370861,24.12837175,130.63,130.58,24.13077175]
[1744661371079,24.12837175,130.63,130.58,16.47287175]
[1744661371278,24.12837175,130.63,130.57,24.27343332]
[1744661371279,16.47287175,130.62,130.57,24.27343332]
[1744661371469,16.47287175,130.62,130.58,16.47287175]
[1744661372081,13.9689,130.63,130.58,16.47287175]
[1744661372289,30.44177175,130.63,130.58,16.47287175]
[1744661372764,30.44177175,130.63,130.58,24.13097175]
[1744661373084,16.47287175,130.62,130.58,24.13097175]
[1744661373294,16.47287175,130.62,130.58,16.47287175]
[1744661373472,16.47287175,130.62,130.57,24.27353332]
[1744661373670,16.47287175,130.61,130.56,24.13207175]
[1744661373876,16.47287175,130.58,130.54,30.0]
[1744661374069,16.47287175,130.57,130.54,30.0]
[1744661374770,24.13137175,130.58,130.54,30.0]
[1744661374972,24.13137175,130.58,130.54,7.6602]
[1744661376592,16.47287175,130.57,130.53,7.6608]
[1744661376882,16.47287175,130.57,130.52,0.31432314]
[1744661376883,16.47287175,130.56,130.52,24.30663332]
[1744661377587,16.47287175,130.55,130.52,0.03]
[1744661377966,16.47287175,130.56,130.52,7.6915]
[1744661378577,16.47287175,130.55,130.52,0.03]
[1744661378866,18.933972,130.61,130.52,0.03]
[1744661378867,16.47287175,130.54,130.52,0.03]
[1744661379696,16.47287175,130.53,130.52,0.03]
[1744661380791,24.13387175,130.53,130.52,0.03]
[1744661382591,43.21000532,130.53,130.52,0.03]
[1744661383385,43.21000532,130.53,130.44,16.64503332]
[1744661383386,26.0,130.5,130.44,0.03]
[1744661383583,16.47287175,130.46,130.44,30.03]
[1744661384393,16.47287175,130.45,130.44,30.03]
[1744661384564,16.47287175,130.45,130.44,0.03]
[1744661386708,42.47287175,130.47,130.44,0.03]
[1744661387593,26.0,130.47,130.44,16.50287175]
[1744661387899,16.47287175,130.48,130.44,0.03]
[1744661389093,16.47287175,130.48,130.44,24.16917175]
[1744661389299,16.47287175,130.49,130.45,16.47287175]
[1744661390089,17.3341,130.54,130.47,16.47287175]
[1744661390296,16.47287175,130.52,130.48,16.47287175]
[1744661390472,10.96,130.54,130.5,16.47287175]
[1744661390672,27.43287175,130.54,130.5,16.47287175]
[1744661391081,27.43287175,130.54,130.51,7.6622]
[1744661392005,1.5337,130.59,130.53,16.47287175]
[1744661392184,10.47664155,130.6,130.52,0.14216157]
[1744661392185,27.9710133,130.6,130.56,16.47287175]
[1744661392373,27.9710133,130.6,130.52,6.57206157]
[1744661392374,16.47287175,130.59,130.52,6.57206157]
[1744661392575,16.47287175,130.59,130.55,16.47287175]
[1744661392782,16.47287175,130.59,130.54,16.47287175]
[1744661393069,16.47287175,130.59,130.55,16.47287175]
[1744661393283,26.26553201,130.59,130.55,33.92523201]
[1744661393966,33.92303201,130.59,130.55,33.92523201]
[1744661394398,33.92303201,130.59,130.55,7.6597]
[1744661395101,26.26553201,130.58,130.54,26.26553201]
[1744661395280,26.26553201,130.55,130.49,26.26553201]
[1744661395603,26.26553201,130.52,130.48,33.92953201]
[1744661395797,52.26553201,130.53,130.48,33.92953201]
[1744661396186,52.26553201,130.53,130.48,7.664]
[1744661396497,52.26553201,130.53,130.48,33.92953201]
[1744661397185,26.0,130.53,130.49,26.26553201]
[1744661397386,26.0,130.53,130.5,26.26553201]
[1744661398204,26.0,130.53,130.49,26.40769358]
[1744661398403,52.26553201,130.53,130.48,33.92953201]
[1744661398978,52.26553201,130.53,130.49,26.26553201]
[1744661400505,52.26553201,130.53,130.48,33.92953201]
[1744661400804,52.26553201,130.53,130.47,0.28432314]
[1744661400805,26.26553201,130.51,130.47,7.6643]
[1744661401487,52.26553201,130.53,130.48,26.40769358]
[1744661401800,26.0,130.53,130.49,26.26553201]
[1744661402602,80.8,130.56,130.48,0.14216157]
[1744661402603,80.8,130.56,130.51,26.26553201]
[1744661402807,10.96,130.57,130.54,26.26553201]
[1744661403016,7.6572,130.6,130.55,26.26553201]
[1744661403186,26.26553201,130.6,130.56,26.26553201]
[1744661403705,26.26553201,130.6,130.55,26.26553201]
[1744661404403,26.26553201,130.56,130.52,9.1922]
[1744661404705,26.26553201,130.57,130.52,35.45773201]
[1744661404880,26.26553201,130.58,130.54,26.26553201]
[1744661405072,26.26553201,130.59,130.54,26.26553201]
[1744661405274,26.26553201,130.59,130.52,28.3463]
[1744661405275,26.26553201,130.58,130.53,26.26553201]
[1744661406103,26.26553201,130.58,130.54,26.26553201]
[1744661406607,26.26553201,130.59,130.54,26.26553201]
[1744661407712,26.26553201,130.58,130.55,7.6599]
[1744661409407,26.26553201,130.57,130.54,7.6601]
[1744661409609,26.26553201,130.59,130.54,33.92563201]
[1744661410294,26.26553201,130.59,130.55,26.26553201]
[1744661411008,26.26553201,130.58,130.54,7.6601]
[1744661411192,26.26553201,130.57,130.54,7.6601]
[1744661411584,26.26553201,130.55,130.51,7.6617]
[1744661411804,26.26553201,130.53,130.5,7.6626]
[1744661412582,36.96,130.56,130.51,26.26553201]
[1744661412801,63.22553201,130.56,130.52,26.26553201]
[1744661412989,63.22553201,130.56,130.51,26.40769358]
[1744661413200,27.38443821,130.56,130.52,16.42443821]
[1744661413398,16.42443821,130.57,130.53,16.42443821]
[1744661413600,16.42443821,130.57,130.54,7.6604]
[1744661414216,7.6581,130.58,130.51,18.79181043]
[1744661414217,16.42443821,130.56,130.51,16.42443821]
[1744661414523,16.42443821,130.55,130.5,35.72359978]
[1744661414719,16.42443821,130.55,130.51,16.42443821]
[1744661415198,16.42443821,130.55,130.51,7.6622]
[1744661415527,16.42443821,130.55,130.51,24.08663821]
[1744661419224,7.6575,130.59,130.51,43.24223821]
[1744661419434,16.42443821,130.59,130.54,16.42443821]
[1744661419927,16.42443821,130.58,130.54,16.42443821]
[1744661420226,16.42443821,130.58,130.54,24.08453821]
[1744661421323,16.42443821,130.58,130.54,7.6601]
[1744661422308,16.42443821,130.58,130.54,24.08453821]
[1744661422513,16.42443821,130.59,130.54,24.08453821]
[1744661422820,16.42443821,130.58,130.54,24.08453821]
[1744661423013,10.96,130.6,130.56,16.42443821]
[1744661423422,27.38443821,130.6,130.56,16.42443821]
[1744661423629,35.04143821,130.6,130.55,18.07393821]
[1744661423829,16.42443821,130.58,130.55,1.6495]
[1744661424128,18.617,130.6,130.55,1.6495]
[1744661424129,16.42443821,130.59,130.55,18.07393821]
[1744661424432,16.42443821,130.59,130.56,7.6593]
[1744661424834,35.04133821,130.6,130.56,7.6593]
[1744661425732,27.38443821,130.6,130.56,7.6593]
[1744661425942,27.38443821,130.6,130.56,24.08373821]
[1744661427932,10.96,130.6,130.56,24.08373821]
[1744661428134,16.48743821,130.61,130.56,24.08373821]
[1744661430337,16.42443821,130.6,130.55,25.73363821]
[1744661430512,16.42443821,130.56,130.52,1.5695]
[1744661430845,16.42443821,130.53,130.5,13.9357]
[1744661431936,16.42443821,130.54,130.5,13.9357]
[1744661432813,16.42443821,130.54,130.5,30.36013821]
[1744661433335,16.42443821,130.56,130.51,16.42443821]
[1744661433520,24.08373821,130.56,130.51,16.42443821]
[1744661434844,16.42443821,130.55,130.5,30.35993821]
[1744661435640,16.42443821,130.54,130.5,30.35993821]
[1744661435814,16.42443821,130.55,130.5,30.35993821]
[1744661437340,16.42443821,130.54,130.5,13.9355]
[1744661437520,16.42443821,130.53,130.5,13.9355]
[1744661437726,16.42443821,130.53,130.5,6.2732]
[1744661438843,16.42443821,130.53,130.5,13.9359]
[1744661440445,7.6595,130.56,130.51,16.42443821]
[1744661440627,16.42443821,130.55,130.51,16.42443821]
[1744661440828,16.42443821,130.56,130.52,16.42443821]
[1744661441023,16.42443821,130.58,130.54,16.42443821]
[1744661441226,10.96,130.59,130.55,16.42443821]
[1744661441519,0.063,130.61,130.58,16.42443821]
[1744661442560,0.063,130.61,130.58,24.08213821]
[1744661443043,0.063,130.61,130.59,16.42443821]
[1744661443233,0.063,130.61,130.6,16.42443821]
[1744661444128,0.063,130.61,130.59,16.56659978]
[1744661444545,0.063,130.61,130.6,7.6569]
[1744661444742,0.063,130.61,130.6,24.08133821]
[1744661446731,0.063,130.61,130.6,7.6569]
[1744661447770,0.063,130.61,130.6,24.08133821]
[1744661448561,0.063,130.61,130.6,43.29963335]
[1744661450460,0.063,130.61,130.6,24.22349978]
[1744661450753,0.063,130.61,130.6,24.08133821]
[1744661450947,0.063,130.61,130.6,7.6569]
[1744661451548,0.063,130.61,130.6,24.08133821]
[1744661453232,0.063,130.61,130.59,7.6573]
[1744661453439,16.48743821,130.61,130.56,22.89433821]
[1744661453764,16.48743821,130.61,130.54,7.6604]
[1744661453765,16.42443821,130.57,130.54,7.6604]
[1744661454056,16.42443821,130.56,130.53,7.6609]
[1744661454265,16.42443821,130.56,130.54,30.0]
[1744661454649,16.42443821,130.57,130.54,30.0]
[1744661454966,16.42443821,130.56,130.52,25.65613821]
[1744661455154,16.42443821,130.56,130.53,30.0]
[1744661455833,16.42443821,130.56,130.52,9.2317]
[1744661456038,16.42443821,130.56,130.52,25.65613821]
[1744661457150,24.08373821,130.56,130.52,9.2317]
[1744661457354,16.42443821,130.56,130.52,9.2317]
[1744661458547,16.42443821,130.56,130.52,25.65613821]
[1744661458743,16.42443821,130.57,130.53,16.42443821]
[1744661458949,27.36443821,130.58,130.54,16.42443821]
[1744661460865,16.42443821,130.58,130.54,24.08433821]
[1744661461075,16.42443821,130.59,130.54,24.08433821]
[1744661461246,16.42443821,130.59,130.55,16.42443821]
[1744661461447,16.42443821,130.6,130.56,16.42443821]
[1744661461746,16.42443821,130.59,130.55,16.42443821]
[1744661462952,16.42443821,130.59,130.56,7.6593]
[1744661463967,16.42443821,130.57,130.52,1.71226157]
[1744661464176,16.42443821,130.56,130.52,18.13669978]
[1744661464563,16.42443821,130.57,130.53,16.42443821]
[1744661465364,16.42443821,130.57,130.53,24.08523821]
[1744661465771,19.2049,130.61,130.56,16.42443821]
[1744661465772,0.063,130.61,130.56,16.42443821]
[1744661465975,0.063,130.61,130.58,16.42443821]
[1744661466160,16.48743821,130.61,130.57,16.42443821]
[1744661466363,0.063,130.61,130.58,16.42443821]
[1744661466979,16.48743821,130.61,130.57,16.42443821]
[1744661467462,0.063,130.61,130.57,16.42443821]